{"text_format":"1","workbook":"xlsx","n_sheets":7,"sheets":["Miehet Yli 75","Miehet Alle 75","Naiset","2x4","4x4","2x4 lopputulokset","Taulukko6"],"not_rendered":{"charts":0,"images":0,"macros":0,"external_links":0,"defined_names":0,"comments":0,"pivot_tables":0},"unopened":[],"bounds":{"document_bytes":16777216,"sheet_cells":100000,"rows_first":2000,"rows_last":500,"rows_between":2000,"halvings":0,"cell_chars":16384,"cell_head_chars":4096},"cells_cut":0,"cells_raw":0,"read":"whole","date_system":"1900"}

{"sheet":"Miehet Yli 75","index":0,"n_rows":49,"n_cols":6,"rows_kept":49,"cut":false,"hidden":false,"merged":[]}
[null,"Kansalliset seniorit SM "]
[null,"Miehet yli 75 v."]
[]
[null,"Nimi","Yhdistys","Synt.vuosi","Tas/sarja","Tulos"]
["1.","Mäkelä Kauno","Nokian kans seniorit",1943,20,836]
["2.","Sahramies Tapio","Kotkan kans seniorit",1943,20,798]
["3.","Aarikka Matti","Nakkilan kans.seniorit",1947,16,793]
["4.","Räikkönen Jaakko","Rauman kans.seniorit",1948,15,759]
["5.","Koskinen Jouko","Hyvinkään kans.seniorit",1940,23,738]
["6.","Halme Vesa","Kuhmoisten kans sen.",1947,16,712]
["7.","Siekkinen Reijo","Keski-Espoon seniorit",1947,16,710]
["8.","Mustonen Leo","Joensuun kans. seniorit ",1940,23,707]
["9.","Virtanen Raimo","Uudenkaupungin kans sen",1946,17,707]
["10.","Rosengren Kari","Nakkilan kans.seniorit",1948,15,704]
["11.","Nykänen Martti","Akaan seniorit",1937,26,696]
["12.","Anttila Jaakko","Raision Seniorit",1942,21,695]
["13.","Vattulainen Antero","Heinolan seniorit",1948,15,693]
["14.","Saukko Mauri","Järvi-Pohjanmaan seniorit",1944,19,692]
["15.","Kivi Kai","Keski-Espoon seniorit",1940,23,690]
["16.","Sorvali Antero","Lammin Seudun kans sen.",1943,20,675]
["17.","Viman Kari","Salon kans seniorit",1944,19,674]
["18.","Varjopuro Arto","Hämeenlinnan kans seniorit",1943,20,669]
["19.","Virtanen Jaakko","Raision Seniorit",1948,15,662]
["20.","Haapala Aimo","Kuortaneen kans.seniorit",1943,20,662]
["21.","Virtanen Juhani","Hämeenlinnan kans seniorit",1943,20,656]
["22.","Hellemaa Reino","Hämeenlinnan kans seniorit",1941,22,654]
["23.","Vaittinen Eino","Lammin Seudun kans sen.",1935,28,649]
["24.","Kartano Antti","Lammin Seudun kans sen.",1948,15,649]
["25.","Keurulainen Pentti","Keski-Espoon seniorit",1947,16,648]
["26.","Saarinen Juhani","Tamperen kans sen",1947,16,646]
["27.","Suonperä Vesa","Hyvinkään kans.seniorit",1934,29,643]
["28.","Uutela Teuvo","Keski-Espoon seniorit",1948,15,637]
["29.","Kauppinen Kari","Heinolan seniorit",1944,19,635]
["30.","Korkia-aho Esko","Lammin Seudun kans sen.",1934,29,619]
["31.","Kangas Teuvo","Järvi-Pohjanmaan seniorit",1944,19,611]
["32.","Munne Mauno","Lammin Seudun kans sen.",1938,25,607]
["33.","Sihvo Tapio","Raision Seniorit",1937,26,604]
["34.","Wallin Kimmo","Hämeenlinnan kans seniorit",1948,16,602]
["35.","Iitti Jorma","Raision Seniorit",1939,24,598]
["36.","Mäkelä Seppo","Salon kans seniorit",1945,18,585]
["37.","Hirviniemi Pauli","Lammin Seudun kans sen.",1947,16,585]
["38.","Hakorinta Arto","Kuortaneen kans.seniorit",1931,32,578]
["39.","Malmi Markku","Keski-Espoon seniorit",1946,17,565]
["40.","Leino Kari","Heinolan seniorit",1940,23,545]
["41.","Messala Jaakko","Keski-Espoon seniorit",1944,19,535]
["42.","Guimaraes Fernando","Keski-Espoon seniorit",1937,26,529]
["43.","Markkanen Kari","Heinolan seniorit",1948,15,504]
["44.","Tuomenoja Markku","Hämeenlinnan kans seniorit",1947,16,482]
["45.","Kartano Simo","Rauman kans.seniorit",1942,21]

{"sheet":"Miehet Alle 75","index":1,"n_rows":23,"n_cols":8,"rows_kept":23,"cut":false,"hidden":false,"merged":[]}
[null,"Miehet alle 75 v."]
[]
[null,"Nimi","Yhdistys",null,null,"Synt.vuosi","Tas/sarja","Tulos"]
["1.","Pyy Markku","Järvenpään kans.seniort",null,null,1950,13,751]
["2.","Romppanen Lauri","Hyvinkään kans.seniorit",null,null,1954,9,729]
["3.","Ikkala Matti","Saarijärven kans sen",null,null,1951,12,707]
["4.","Rajala Raimo","Järvi-Pohjanmaan seniorit",null,null,1950,13,694]
["5.","Koskimäki Timo","Järvenpään kans.seniort",null,null,1960,3,691]
["6.","Selkee Seppo","Järvi-Pohjanmaan seniorit",null,null,1949,14,678]
["7.","Lehtonen Juha-Pekka","Nokian kans seniorit",null,null,1952,11,667]
["8.","Leppäaho Raimo","Järvi-Pohjanmaan seniorit",null,null,1949,14,654]
["9.","Pöyhtäri Eero","Lammin Seudun kans sen.",null,null,1950,13,649]
["10.","Linden Jaakko","Hämeenlinnan kans seniorit",null,null,1953,10,626]
["11.","Rauvola Antti","Joensuun kans. seniorit ",null,null,1956,7,624]
["12.","Juoperi Seppo","Järvi-Pohjanmaan seniorit",null,null,1950,13,610]
["13.","Valtamo Unto","Salon kans seniorit",null,null,1950,13,571]
["14.","Laakso Markku","Pälkäneen seniorit",null,null,1950,13,564]
["15.","Kekki Jorma","Tampereen kans. Seniorit",null,null,1956,7,553]
["16.","Yli-Olli Pentti","Järvi-Pohjanmaan seniorit",null,null,1955,8,553]
["17.","Toikka Kalevi","Pälkäneen seniorit",null,null,1949,14,538]
["18.","Kauttu Harri","Pälkäneen seniorit",null,null,1952,11,537]
["19.","Laaksonen Klaus","Raision Seniorit",null,null,1951,12,457]
["20.","Kartano Jaakko","Lammin Seudun kans sen.",null,null,1951,12]

{"sheet":"Naiset","index":2,"n_rows":31,"n_cols":8,"rows_kept":31,"cut":false,"hidden":false,"merged":[]}
[]
[null,"Kansalliset seniorit SM "]
[]
[null,"Naiset yli 75 v."]
[null,"Nimi","Yhdistys",null,null,"Synt.vuosi","Tas/sarja","Tulos"]
["1.","Flytström Marja","Lammin Seudun kans.seniorit",null,null,1944,19,668]
["2.","Hakala Anneli","Lammin Seudun kans.seniorit",null,null,1941,22,663]
["3.","Ilva Raija","Hämeenlinnan kans. Seniorit",null,null,1942,21,642]
["4.","Kanerva Sirpa","Lammin Seudun kans.seniorit",null,null,1940,23,600]
["5.","Mäkiniemi Ulla","Hämeenlinnan kans. Seniorit",null,null,1946,17,591]
["6.","Vaaralahti Taimi","Hyvinkään kans.seniorit",null,null,1940,23,566]
["7.","Raatikainen Seija","Hämeenlinnan kans. Seniorit",null,null,1948,15,554]
["8.","Saarenpää Sirpa","Nokian seniorit",null,null,1948,15,542]
["9.","Ahola Aila","Keski-Espoon seniorit",null,null,1939,24,501]
["10.","Kjellman Tuula","Keski-Espoon seniorit",null,null,1947,16,500]
["11.","Eskelinen Airi","Keski-Espoon seniorit",null,null,1948,15,454]
[]
[null,"Naiset Alle 75v."]
[null,"Nimi","Yhdistys",null,null,"Synt.vuosi","Tas/Sarja","Tulos"]
["1.","Nio-Halme Raija","Kuhmoisten kans sen.",null,null,1952,11,638]
["2.","Romppanen Lea","Hyvinkään kans. Seniorit",null,null,1953,10,618]
["3.","Mäkinen Anne","Hämeenlinnan kans. Seniorit",null,null,1957,6,603]
["4.","Vainio Tuula","Rauman kans seniorit",null,null,1951,12,599]
["5.","Järvinen Marita","Pälkäneen kans. Seniorit ry",null,null,1950,13,575]
["6.","Laurila Liisa","Hämeenlinnan kans. Seniorit",null,null,1955,8,564]
["7.","Sorvali Pirjo","Lammin Seudun kans.seniorit",null,null,1950,13,540]
["8.","Miclin Tiina","Salon kans seniorit",null,null,1956,7,514]
["9.","Kivinen Irene","Hämeenlinnan kans. Seniorit",null,null,1955,8,499]
["10.","Lassila Soile","Lammin Seudun kans.seniorit",null,null,1949,14,473]
["11.","Pöyhtäri Eliisa","Lammin Seudun kans.seniorit",null,null,1951,12,440]
["12.","Kartano Ulla","Lammin Seudun kans.seniorit",null,null,1950,13]

{"sheet":"2x4","index":3,"n_rows":92,"n_cols":6,"rows_kept":92,"cut":false,"hidden":false,"merged":[]}
[]
[null,"PARIKILPAILU  2 x 4 SARJAA"]
[null,null,null,"yht."]
[1,"Kangas Teuvo ",611,{"$f":"C4+C5","v":1221},"Järvi-Pohjanmaan seniorit","Su klo 13.30"]
[null,"Juoperi Seppo",610,null,"        - ” -","     - ” -"]
[]
[2,"Haapala Aimo",662,{"$f":"C7+C8","v":1240},"Kuortaneen kansalliset seniorit","Su klo 13.30"]
[null,"Hakorinta Arto",578,null,"       - ” -","     - ” -"]
[]
[3,"Suonperä Vesa",643,{"$f":"C10+C11","v":1372},"Hyvinkään kans.seniorit","La klo 12.00"]
[null,"Romppanen Lauri",729,null,"       - ” -","     - ” -"]
[]
[4,"Vaaralahti Taimi",566,{"$f":"C13+C14","v":1184},"Hyvinkään kans.seniorit","     - ” -"]
[null,"Romppanen Lea",618,null,"       - ” -","     - ” -"]
[]
[5,"Virtanen Jaakko",662,{"$f":"C16+C17","v":1119},"Raision Seniorit","La klo 13.30"]
[null,"Laaksonen Klaus",457,null,"       - ” -","     - ” -"]
[]
[6,"Iitti Jorma",585,{"$f":"C19+C20","v":1280},"       - ” -","     - ” -"]
[null,"Anttila Jaakko",695,null,"       - ” -","     - ” -"]
[]
[7,"Vainio Tuula",599,{"$f":"C22+C23","v":1358},"Rauman kans.seniorit","La klo 12.00"]
[null,"Räikkönen Jaakko",759,null,"       - ” -","     - ” -"]
[]
[8,"Saarenpää Sirpa",542,{"$f":"C25+C26","v":1209},"Nokian seniorit","La klo 12.00"]
[null,"Lehtonen Juha-Pekka",667,null,"       - ” -","Su klo 12.00"]
[]
[9,"Nio-Halme Raija",638,{"$f":"C28+C29","v":1350},"Kuhmoisten kans.sen","Su klo 13.30"]
[null,"Halme Vesa",712,null,"       - ” -","     - ” -"]
[]
[10,"Rosengren Kari",704,{"$f":"C31+C32","v":1497},"Nakkilan kans.seniorit","Su klo 12.00"]
[null,"Aarikka Matti",793,null,"       - ” -","     - ” -"]
[]
[11,"Pyy Markku",751,{"$f":"C34+C35","v":1442},"Järvenpään kans. Seniorit","La klo 12.00"]
[null,"Koskimäki Timo",691,null,"       - ” -","     - ” -"]
[]
[12,"Micklin Tiina",514,{"$f":"C37+C38","v":1085},"Salon kans.seniorit","La klo 13.30"]
[null,"Valtamo Unto",571,null,"       - ” -","     - ” -"]
[]
[13,"Viman Kari",674,{"$f":"C40+C41","v":1259},"       - ” .","     - ” -"]
[null,"Mäkelä Seppo",585,null,"       - ” -","     - ” -"]
[]
[14,"Lassila Soile",473,{"$f":"C43+C44","v":913},"Lammin Seud. Kans.sen.","Su klo 13.30"]
[null,"Pöyhtäri Eliisa",440,null,"       - ” -","     - ” -"]
[]
[15,"Sorvali Pirjo",540,{"$f":"C46+C47","v":540},"       - ” -","     - ” -"]
[null,"Kartano Ulla",null,null,"       - ” -","     - ” -"]
[]
[16,"Hirviniemi Pauli",585,{"$f":"C49+C50","v":1185},"       - ” -","     - ” -"]
[null,"Kanerva Sirpa",600,null,"       - ” -","     - ” -"]
[]
[17,"Flytström Marja",668,{"$f":"C52+C53","v":1317},"       - ” -","     - ” -"]
[null,"Pöyhtäri Eero",649,null,"       - ” -","     - ” -"]
[]
[18,"Korkia-aho Esko",619,{"$f":"C55+C56","v":1268},"       - ” -","     - ” -"]
[null,"Vaittinen Eino",649,null,"       - ” -","     - ” -"]
[]
[19,"Laurila Liisa",564,{"$f":"C58+C59","v":1167},"Hämeenlinnan kans.seniorit","Su klo 12.00"]
[null,"Mäkinen Anne",603,null,"       - ” -","     - ” -"]
[]
[20,"Ilva Raija",642,{"$f":"C61+C62","v":1196},"       - ” -","     - ” -"]
[null,"Raatikainen Seija",554,null,"       - ” -","     - ” -"]
[]
[21,"Tuomenoja Markku",482,{"$f":"C64+C65","v":1084},"       - ” -","     - ” -"]
[null,"Wallin Kimmo",602,null,"       - ” -","     - ” -"]
[]
[22,"Kivinen Irene",499,{"$f":"C67+C68","v":1093},"       - ” -","     - ” -"]
[null,"Mäkiniemi Ulla",594,null,"       - ” -","     - ” -"]
[]
[23,"Mustonen Leo",707,{"$f":"C70+C71","v":1331},"Joensuun kans.seniorit","Su klo 13.30"]
[null,"Rauvola Antti",624,null,"       - ” -","     - ” -"]
[]
[24,"Kekki Jorma",553,{"$f":"C73+C74","v":1199},"Tampereen kansalliset seniorit","La klo 13.30"]
[null,"Saarinen Juhani",646,null,"       - ” -","Su klo 13.30"]
[]
[25,"Ahola Aila",501,{"$f":"C76+C77","v":955},"Keski-Espoon seniorit ry","La klo 13.30"]
[null,"Askelinen Airi",454,null,"       - ” -","     - ” -"]
[]
[26,"Malmi Markku",565,{"$f":"C79+C80","v":1065},"       - ” -","     - ” -"]
[null,"Kjellman Tuula",500,null,"       - ” -","     - ” -"]
[]
[27,"Uutela Teuvo",637,{"$f":"C82+C83","v":1285},"       - ” -","     - ” -"]
[null,"Keurulainen Pentti",648,null,"       - ” -","     - ” -"]
[]
[28,"Siekkinen Reijo",710,{"$f":"C85+C86","v":1400},"       - ” -","     - ” -"]
[null,"Kivi Kaj",690,null,"       - ” -","     - ” -"]
[]
[29,"Guimaraes Fernando",529,{"$f":"C88+C89","v":1064},"      - ” -","     - ” -"]
[null,"Messala Jaakko",535,null,"      - ” -","     - ” -"]
[]
[30,"Yli-Olli Pentti",553,{"$f":"C91+C92","v":1163},"Järvi-Pohjanmaan seniorit"]
[null,"Juoperi Seppo",610]

{"sheet":"4x4","index":4,"n_rows":33,"n_cols":5,"rows_kept":33,"cut":false,"hidden":false,"merged":[]}
[]
[null,"JOUKKUEKILPAILU 4 x 4 SARJAA"]
[]
[1,"Järvi-Pohjanmaan kansalliset seniorit",null,null,{"$f":"D5+D6+D7+D8","v":2718}]
[null,"Selkee Seppo",null,678]
[null,"Rajala Raimo",null,694]
[null,"Leppäaho Raimo",null,654]
[null,"Saukko Mauri",null,692]
[]
[2,"Hämeenlinnan kans.seniorit",null,null,{"$f":"D11+D12+D13+D14","v":2605}]
[null,"Varjopuro Arto",null,669]
[null,"Virtanen Juhani",null,656]
[null,"Linden Jaakko",null,626]
[null,"Hellemaa Reino",null,654]
[]
[3,"Lammin Seudun kansalliset seniorit",null,null,{"$f":"D17+D18+D19+D20","v":2594}]
[null,"Sorvali Antero",null,675]
[null,"Kartano Antti",null,649]
[null,"Hakala Anneli",null,663]
[null,"Munne Mauno",null,607]
[]
[4,"Heinolan kans seniorit",null,null,{"$f":"D23+D24+D25+D26","v":2377}]
[null,"Leino Kari",null,545]
[null,"Kauppinen Kari",null,635]
[null,"Markkanen Kari",null,504]
[null,"Vattulainen Antero",null,693]
[]
[]
[5,"Pälkäneen kans seniorit",null,null,{"$f":"D30+D31+D32+D33","v":2214}]
[null,"Toikka Kalevi",null,538]
[null,"Järvinen Marita",null,575]
[null,"Kauttu Harri",null,537]
[null,"Laakso Markku",null,564]

{"sheet":"2x4 lopputulokset","index":5,"n_rows":118,"n_cols":9,"rows_kept":118,"cut":false,"hidden":false,"merged":[]}
[]
[null,"PARIKILPAILU  2 x 4 SARJAA"]
[]
["1. ","Nakkilan kans. Seniorit",null,1497]
[null,"Rosengren Kari",704]
[null,"Aarikka Matti",793]
[]
["2.","Järvenpään kans. seniorit",null,1442]
[null,"Koskimäki Timo",691]
[null,"Pyy Markku",751]
[]
["3.","Keski-Espoon seniorit ry",null,1400]
[null,"Siekkinen Reijo",710]
[null,"Kivi Kaj",690]
[]
["4.","Hyvinkään kans. seniorit",null,1372]
[null,"Suonperä Vesa",643]
[null,"Romppanen Lauri",729]
[]
["5.","Rauman kans. seniorit",null,1358]
[null,"Vainio Tuula",599]
[null,"Räikkönen Jaakko",759]
[]
["6.","Kuhmoisten kans. Seniorit",null,1350]
[null,"Nio-Halme Raija",638]
[null,"Halme Vesa",712,null,null,null,null,null,"Sijalla 17 pitäisi olla:"]
[null,null,null,null,null,null,null,null,"Ilva Raija 642 "]
["7.","Joensuun kans. Seniorit",null,1331,null,null,null,null,"Raatikainen Seija 554"]
[null,"Mustonen Leo",707,null,null,null,null,null,"Yhteensä 1196"]
[null,"Rauvola Antti",624]
[]
["8.","Lammin seudun kans. Seniorit",null,1317]
[null,"Flytström Marja",668]
[null,"Pöyhtäri Eero",649]
[]
["9.","Keski-Espoon seniorit",null,1285]
[null,"Uutela Teuvo",637]
[null,"Keurulainen Pentti",648]
[]
["10.","Raision seniorit",null,1280]
[null,"Iitti Jorma",585]
[null,"Anttila Jaakko",695]
[]
["11.","Lammin seudun kans. Seniorit",null,1268]
[null,"Korkia-Aho Esko",619]
[null,"Vaittinen Eino",649]
[]
["12.","Salon kans. Seniorit",null,1259]
[null,"Viman Kari",674]
[null,"Mäkelä Seppo",585]
[]
["13.","Kuortaneen kans. Seniorit",null,1240]
[null,"Haapala Aimo",662]
[null,"Hakorinta Arto",578]
[]
["14.","Järvi-Pohjanmaan seniorit",null,1221]
[null,"Kangas Teuvo",611]
[null,"Juoperi Seppo",610]
[]
["15.","Nokian seniorit",null,1209]
[null,"Saarenpää Sirpa",542]
[null,"Lehtonen Jukka-Pekka",667]
[]
["16.","Tampereen kans. Seniorit",null,1199]
[null,"Kekki Jorma",553]
[null,"Saarinen Juhani",646]
[]
["17.","Hämeenlinnan kans. Seniorit",null,1196]
[null,"Ilva Raija",642]
[null,"Raatikainen Seija",554]
[]
["18.","Lammin seudun kans. Seniorit",null,1185]
[null,"Hirviniemi Pauli",585]
[null,"Kanerva Sirpa",600]
[]
["19.","Hyvinkään kans. Seniorit",null,1184]
[null,"Vaaralahti Taimi",566]
[null,"Romppanen Lea",618]
[]
["20.","Hämeenlinnan kans. Seniorit",null,1167]
[null,"Laurila Liisa",564]
[null,"Mäkinen Anne",603]
[]
["21.","Järvi-Pohjanmaan seniorit",null,1163]
[null,"Yli-Olli Pentti",553]
[null,"Juoperi Seppo",610]
[]
["22.","Raision seniorit",null,1119]
[null,"Virtanen Jaakko",662]
[null,"Laaksonen Klaus",457]
[]
["23.","Hämeenlinnan kans. Seniorit",null,1093]
[null,"Kivinen Irene",499]
[null,"Mäkiniemi Ulla",594]
[]
["24.","Salon kans. Seniorit",null,1085]
[null,"Micklin Tiina",514]
[null,"Valtamo Unto",571]
[]
["25.","Hämeenlinnan kans. Seniorit",null,1084]
[null,"Tuomenoja Markku",482]
[null,"Wallin Kimmo",602]
[]
["26.","Keski-Espoon seniorit",null,1065]
[null,"Malmi Markku",565]
[null,"Kjellman Tuula",500]
[]
["27.","Keski-Espoon seniorit",null,1064]
[null,"Guimaraes Fernando",529]
[null,"Messala Jaakko",535]
[]
["28.","Keski-Espoon seniorit",null,955]
[null,"Ahola Aila",501]
[null,"Askelinen Airi",454]
[]
["29.","Lammin seudun kans. Seniorit",null,913]
[null,"Lassila Soile",473]
[null,"Pöyhtäri Eliisa",440]

{"sheet":"Taulukko6","index":6,"n_rows":0,"n_cols":0,"rows_kept":0,"cut":false,"hidden":false,"merged":[]}